{"text_format":"3","workbook":"xlsx","n_sheets":2,"sheets":["JAK KORZYSTAĆ Z TEGO ARKUSZA","DZIENNIK OCEN"],"not_rendered":{"defined_names":5},"read":"whole","date_system":"1900"}

{"sheet":"JAK KORZYSTAĆ Z TEGO ARKUSZA","index":0,"n_rows":10,"n_cols":2,"rows_kept":10}
[null,"INSTRUKCJE"]
[null,"Ten DZIENNIK OCEN umożliwia obliczanie ocen w przypadku, gdy za każde zadanie jest przyznawana określona liczba punktów. "]
[null,"Instrukcje: Pamiętaj o zapisaniu kopii ocen."]
[null,"1. Wprowadź nazwa szkoły, informacje o zajęciach, imiona i nazwiska uczniów oraz ich identyfikatory (opcjonalnie).   "]
[null,"2. Dostosuj tabelę ocen i średnich ocen do używanego systemu ocen."]
[null,"3. Wprowadź nazwy zadań i testów, zaczynając w komórce G7, a także odpowiadające im wartości procentowe (np. „Końcowy” i „50%”). "]
[null,"4. Wprowadź wyniki zadań i testów dla poszczególnych uczniów. Kolumny „Wynik”, „Ocena” i „Średnia ocen” są obliczane automatycznie, ale jeśli chcesz, możesz zastąpić te wartości. Sposób obliczania ocen sprawia, że średnia i ocena końcowa są niepełne do czasu wprowadzenia wszystkich wyników."]
[null,"Jeśli chcesz zmienić drukowany obszar, skorzystaj z polecenia Obszar wydruku w menu Układ strony."]
[null,"Wartości Wynik, Ocena i Średnia ocen nie będą prawidłowe, dopóki testy i zadania nie zostaną całkowicie wypełnione. "]
[null,"Wprowadź wszystkie zadania lub testy i odpowiadające im wartości procentowe oceny całkowitej w komórkach od G7 do W8."]

{"sheet":"DZIENNIK OCEN","index":1,"n_rows":20,"n_cols":23,"rows_kept":20,"merged":[[5,1,5,5],[6,1,6,3],[6,4,6,5],[7,1,8,3],[7,4,7,5],[8,4,8,5],[15,1,15,5],[16,1,16,2],[17,1,17,2],[18,1,18,2],[19,1,19,2]]}
[null,"NAZWA SZKOŁY"]
[]
[{"$nulls":6},"Wynik",{"v":0,"d":"0%"},{"v":0.6,"d":"60%"},{"v":0.63,"d":"63%"},{"v":0.67,"d":"67%"},{"v":0.7,"d":"70%"},{"v":0.73,"d":"73%"},{"v":0.77,"d":"77%"},{"v":0.8,"d":"80%"},{"v":0.83,"d":"83%"},{"v":0.87,"d":"87%"},{"v":0.9,"d":"90%"},{"v":0.93,"d":"93%"},{"v":0.97,"d":"97%"}]
[{"$nulls":6},"Ocena","1","2-","2","2+","3-","3","3+","4-","4","4+","5-","5","6"]
[{"$nulls":6},"Średnia ocen",0,0.67,1,1.33,1.67,2,2.33,2.67,3,3.33,3.67,4,4]
[null,"Imię i nazwisko nauczyciela"]
[null,"Zajęcia/projekt",null,null,"Nazwa zadania lub testu"]
[null,"Rok/semestr/kwartał",null,null,"Wartość procentowa (w sumie 100%)"]
[{"$nulls":4},{"$f":"\"Łączna wartość procentowa: \"&SUM(G8:W8)*100&\"%\"","v":"Łączna wartość procentowa: 0%"}]
[null,"Imię i nazwisko ucznia","Identyfikator ucznia","Wynik","Ocena","Średnia ocen","Kolumna 6","Kolumna 7","Kolumna 8","Kolumna 9","Kolumna 10","Kolumna 11","Kolumna 12","Kolumna 13","Kolumna 14","Kolumna 15","Kolumna 16","Kolumna 17","Kolumna 18","Kolumna 19","Kolumna 20","Kolumna 21","Kolumna 22"]
[{"$nulls":3},{"$f":"(IF(SUM(Oceny[[#This Row],[Kolumna 6]:[Kolumna 22]]),ROUND(SUMPRODUCT($G$8:$W$8,Oceny[[#This Row],[Kolumna 6]:[Kolumna 22]]),2),\"\"))","v":""},{"$f":"IF(Oceny[[#This Row],[Wynik]]<>\"\",HLOOKUP(Oceny[[#This Row],[Wynik]],TabelaOcen,2),\"\")","v":""},{"$f":"IF(Oceny[[#This Row],[Wynik]]<>\"\",HLOOKUP(Oceny[[#This Row],[Wynik]],TabelaOcen,3),\"\")","v":""}]
[{"$nulls":3},{"$f":"(IF(SUM(Oceny[[#This Row],[Kolumna 6]:[Kolumna 22]]),ROUND(SUMPRODUCT($G$8:$W$8,Oceny[[#This Row],[Kolumna 6]:[Kolumna 22]]),2),\"\"))","v":""},{"$f":"IF(Oceny[[#This Row],[Wynik]]<>\"\",HLOOKUP(Oceny[[#This Row],[Wynik]],TabelaOcen,2),\"\")","v":""},{"$f":"IF(Oceny[[#This Row],[Wynik]]<>\"\",HLOOKUP(Oceny[[#This Row],[Wynik]],TabelaOcen,3),\"\")","v":""}]
[{"$nulls":3},{"$f":"(IF(SUM(Oceny[[#This Row],[Kolumna 6]:[Kolumna 22]]),ROUND(SUMPRODUCT($G$8:$W$8,Oceny[[#This Row],[Kolumna 6]:[Kolumna 22]]),2),\"\"))","v":""},{"$f":"IF(Oceny[[#This Row],[Wynik]]<>\"\",HLOOKUP(Oceny[[#This Row],[Wynik]],TabelaOcen,2),\"\")","v":""},{"$f":"IF(Oceny[[#This Row],[Wynik]]<>\"\",HLOOKUP(Oceny[[#This Row],[Wynik]],TabelaOcen,3),\"\")","v":""}]
[{"$nulls":3},{"$f":"(IF(SUM(Oceny[[#This Row],[Kolumna 6]:[Kolumna 22]]),ROUND(SUMPRODUCT($G$8:$W$8,Oceny[[#This Row],[Kolumna 6]:[Kolumna 22]]),2),\"\"))","v":""},{"$f":"IF(Oceny[[#This Row],[Wynik]]<>\"\",HLOOKUP(Oceny[[#This Row],[Wynik]],TabelaOcen,2),\"\")","v":""},{"$f":"IF(Oceny[[#This Row],[Wynik]]<>\"\",HLOOKUP(Oceny[[#This Row],[Wynik]],TabelaOcen,3),\"\")","v":""}]
[{"$nulls":3},{"$f":"(IF(SUM(Oceny[[#This Row],[Kolumna 6]:[Kolumna 22]]),ROUND(SUMPRODUCT($G$8:$W$8,Oceny[[#This Row],[Kolumna 6]:[Kolumna 22]]),2),\"\"))","v":""},{"$f":"IF(Oceny[[#This Row],[Wynik]]<>\"\",HLOOKUP(Oceny[[#This Row],[Wynik]],TabelaOcen,2),\"\")","v":""},{"$f":"IF(Oceny[[#This Row],[Wynik]]<>\"\",HLOOKUP(Oceny[[#This Row],[Wynik]],TabelaOcen,3),\"\")","v":""}]
[]
[null,"Podsumowanie zajęć",null,"Wynik","Ocena","Średnia ocen","","","","","","","","","","",""]
[null," Średnia",null,{"$f":"IFERROR(AVERAGE(Oceny[[#All],[Wynik]]),0)","v":{"v":0,"d":"0.0%"}},{"$f":"IFERROR(HLOOKUP(D18,TabelaOcen,2),\"\")","v":"1"},{"$f":"IFERROR(AVERAGE(Oceny[[#All],[Średnia ocen]]),0)","v":0},"","","","","","","","","","","","","","","","",""]
[null," Najlepszy wynik",null,{"$f":"IFERROR(MAX(Oceny[[#All],[Wynik]]),0)","v":{"v":0,"d":"0.0%"}},{"$f":"IFERROR(HLOOKUP(D19,TabelaOcen,2),\"\")","v":"1"},{"$f":"IFERROR(MAX(Oceny[[#All],[Średnia ocen]]),0)","v":0},"","","","","","","","","","","","","","","","",""]
[null," Najsłabszy wynik",null,{"$f":"IFERROR(MIN(Oceny[[#All],[Wynik]]),0)","v":{"v":0,"d":"0.0%"}},{"$f":"IFERROR(HLOOKUP(D20,TabelaOcen,2),\"\")","v":"1"},{"$f":"IFERROR(MIN(Oceny[[#All],[Średnia ocen]]),0)","v":0},"","","","","","","","","","","","","","","","",""]